Cogmind - Beta 15 @@@ ROGUE MODE // 2025.09.29 @ 14:53:29 Player: Reflectatory Result: Destroyed by G-47 Trooper with Particle Gun Performance ------------- Evolutions (1) 500 Regions Visited (2) 400 Robots Destroyed (14) 70 Value Destroyed (415) 415 Prototype IDs (2) 40 Alien Tech Used (0) 0 Bonus (0) 0 TOTAL SCORE: 1425 Bonus ------- None Cogmind --------- Core Integrity 0/400 Matter 180/300 Energy 99/100 System Corruption 11% Temperature Cool (9) Movement Core (200) Ox3 Location -9/Materials Parts ------- > --- POWER (1) -------- (None) > --- PROPULSION (3) --- (None) > --- UTILITY (3) ------ Small Storage Unit > --- WEAPON (2) ------- Improved Assault Rifle Faulty Improved Assault Rifle > --- INVENTORY (8) ---- Ion Engine Visual Processing Unit Targeting Computer Shield Generator Light Assault Rifle Peak State ------------ > --- POWER ------------ Heavy Ion Engine > --- PROPULSION ------- Compact Wheel Flight Unit > --- UTILITY ---------- Improved Heat Sink Small Storage Unit Core Shielding > --- WEAPON ----------- EM Pulse Gun Medium Laser > --- INVENTORY -------- Visual Processing Unit Targeting Computer Light Assault Rifle [Rating: 12] Favorites ----------- Power Ion Engine Engine Ion Engine Propulsion Compact Wheel Wheel Compact Wheel Flight Unit Flight Unit Utility Small Storage Unit Device Improved Heat Sink Storage Small Storage Unit Protection Core Shielding Weapon EM Pulse Gun Energy Gun EM Pulse Gun Ballistic Gun Improved Assault Rifle Special Weapon Mining Laser Build | -11 -10 -9 ------- Run | Yrd Mat Mat Slots Evolved 2 | . . 2 Power . | . . . Propulsion 1 | . . 1 Utility 1 | . . 1 Weapon . | . . . Parts Attached 17 | 6 2 9 Power 2 | 1 . 1 Engine 2 | 1 . 1 Core . | . . . Reactor . | . . . Propulsion 4 | 2 . 2 Treads . | . . . Leg . | . . . Wheel 2 | 2 . . Hover . | . . . Flight 2 | . . 2 Utility 4 | 1 2 1 Device 2 | . 2 . Storage 1 | 1 . . Processor . | . . . Hackware . | . . . Protection 1 | . . 1 Artifact . | . . . Weapon 7 | 2 . 5 Energy Gun 2 | 2 . . Energy Cannon . | . . . Ballistic Gun 4 | . . 4 Ballistic Cannon . | . . . Launcher . | . . . Special Weapon 1 | . . 1 Impact Weapon . | . . . Slashing Weapon . | . . . Piercing Weapon . | . . . Special Melee Weapon . | . . . Unidentified Prototypes 2 | . . 2 Parts Lost 12 | . 2 10 Power . | . . . Propulsion 4 | . 1 3 Utility 3 | . 1 2 Weapon 5 | . . 5 Highest Loss Streak 8 | . 2 8 To Critical Strikes . | . . . Average Backups 3 | . 3 4 Power . | . . . Propulsion . | . 1 . Utility 1 | . . 2 Weapon . | . 1 1 Tool/Special . | . . . Unused Backups 4 | . . 4 Power . | . . . Propulsion . | . . . Utility 3 | . . 3 Weapon 1 | . . 1 Tool/Special . | . . . Average Slot Usage (%) 83 | . 90 75 Engine 11 | . 14 9 Wheel 14 | . 20 7 Flight 5 | . . 10 Device 10 | . 12 8 Storage 12 | . 14 11 Protection 3 | . . 8 Energy Gun 21 | . 28 13 Ballistic Gun 2 | . . 5 Peak Build Rating 12 | 6 8 12 Average Rating 8 | 3 7 10 On Entrance 4 | . 6 8 Naked Turns . | . . . Heaviest Build 19 | 14 15 19 Greatest Support 26 | 26 26 16 Greatest Overweight (x) 5 | . . 5 Average Overweight (x) . | . . . Largest Inventory Capacity 8 | 8 8 8 Average Capacity 7 | 6 8 8 Most Carried 6 | 1 6 5 Average Carried 3 | . 3 3 Final Capacity 8 | 8 8 8 Final Carried 6 | 1 6 5 Class Distribution -------------------- 100% | Mutant Dominant Class ---------------- Mutant | -10/Materials Mutant | -9/Materials Resources | -11 -10 -9 ----------- Run | Yrd Mat Mat Matter Collected 329 | 189 89 51 Remotely . | . . . Salvage Created 524 | . 156 368 Parts 36 | . 13 23 Haulers Intercepted . | . . . Recyclers Shooed 1 | . . 1 Parts Field Recycled . | . . . Retrieved Matter . | . . . Parts Self-Destructed . | . . . Prevented . | . . . Kills | -11 -10 -9 ------- Run | Yrd Mat Mat Combat Hostiles Destroyed 12 | . 5 7 Guns 10 | . 3 7 AOE 2 | . 2 . Classes Destroyed 6 | . 3 3 Mechanic 1 | . . 1 Watcher 1 | . 1 . Swarmer 3 | . 3 . Grunt 6 | . 2 4 Brawler 1 | . . 1 Sentry 2 | . . 2 Best Kill Streak 5 | . 3 5 Combat Bots Only 5 | . 3 5 Max Kills in Single Turn 2 | . 2 2 Gunslinging . | . . . Exploded 2 | . 2 . Melee . | . . . Uniques/NPCs Destroyed . | . . . Combat | -11 -10 -9 -------- Run | Yrd Mat Mat Hostile Shots Fired 152 | . 25 127 Missed 37 | . 6 31 Hits 115 | . 19 96 Melee 4 | . . 4 Projectile 111 | . 19 92 AOE 1 | . 1 . Critical Strikes 5 | . . 5 Actively Blocked 1 | . . 1 Damage Taken 1650 | . 307 1343 Core 565 | . 155 410 Absorbed by Shields . | . . . Redirected to Shielding 24 | . . 24 Core Remaining (%) 69 | 100 38 . Volleys Fired 61 | . 27 34 Largest 2 | . 2 2 Hottest 140 | . 90 140 Shots Fired 80 | . 34 46 Gun 77 | . 34 43 Cannon . | . . . Launcher . | . . . Special 3 | . . 3 Kinetic 40 | . . 40 Thermal 20 | . 17 3 Explosive . | . . . Electromagnetic 20 | . 17 3 Robot Hit Streak 12 | . 5 12 Robot Miss Streak 4 | . 3 4 Penetration Max . | . . . Secondary Targets 3 | . 1 2 Max Gunslinging Chain 1 | . 1 1 Shots Hit Robots 45 | . 15 30 Core Hits 25 | . 9 16 Critical Kills . | . . . Critical Parts Destroyed . | . . . Critical Strikes 1 | . 1 . Burn 1 | . 1 . Melee Attacks . | . . . Impact . | . . . Slashing . | . . . Piercing . | . . . Sneak Attacks . | . . . Combat Hostiles . | . . . Follow-up Attacks . | . . . Damage Inflicted 773 | . 296 477 Guns 687 | . 210 477 Cannons . | . . . Explosions 82 | . 82 . Melee . | . . . Ramming 4 | . 4 . Kinetic 477 | . . 477 Thermal 156 | . 156 . Explosive . | . . . Electromagnetic 136 | . 136 . Impact . | . . . Slashing . | . . . Piercing . | . . . Highest Corruption 11 | . 2 11 Average Corruption 3 | . 2 9 Corruption Purged . | . . . Corruption Blocked . | . . . Effects 8 | . 5 3 Matter Fused 3 | . 1 2 Heat Flow Errors 1 | . 1 . Energy Discharges 1 | . 1 . Data Loss (minor) 2 | . 2 . Weapon Failures 1 | . . 1 Overload Shots . | . . . Overflow Damage . | . . . Projectiles . | . . . Explosions . | . . . Melee . | . . . Knockbacks . | . . . Impact . | . . . Kinetic . | . . . Secondary . | . . . Self-Inflicted Damage 2 | . 2 . Shots . | . . . Rammed 1 | . 1 . Targets Rammed 1 | . 1 . Kicked . | . . . Crushed . | . . . Highest Temperature 297 | . 297 28 Average Temperature 107 | . 174 10 Received Heat Transfer 735 | . 87 648 Effects 3 | . 3 . Energy Bleed 1 | . 1 . Interference 2 | . 2 . Siege Activations . | . . . Martial Activations . | . . . Shielding Activations . | . . . Robots Disrupted . | . . . Combat Hostiles . | . . . Robots Corrupted . | . . . Combat Hostiles . | . . . Parts Fried . | . . . Impact Corruptions . | . . . Robots Melted . | . . . Combat Hostiles . | . . . Parts Melted 1 | . 1 . Heat Transferred 346 | . 346 . Parts Sabotaged . | . . . Parts Stolen . | . . . Parts Stripped . | . . . Power Chain Reactions 1 | . 1 . Alert | -11 -10 -9 ------- Run | Yrd Mat Mat Maximum Alert Level . | . . . Low Security (%) 100 | 100 100 100 Level 1 . | . . . Level 2 . | . . . Level 3 . | . . . Level 4 . | . . . Level 5 . | . . . High Security . | . . . Max Security . | . . . Peak Influence 150 | . 72 150 Initial . | . . . Average 21 | . 24 21 Influence Increases 393 | . 155 238 Destroy 0b10 Robot/C 240 | . 100 140 Destroy 0b10 Robot/NC 10 | . 5 5 Destroy Leader 62 | . 22 40 Successful Hack 31 | . 26 5 Destroy Structure 5 | . 2 3 Lose Combat Pursuer 45 | . . 45 Influence Decreases 253 | . 153 100 Entered New Map 2 | . . 2 Time Decay 203 | . 133 70 Lost Part 48 | . 20 28 Squads Dispatched 3 | . 1 2 Investigation . | . . . Extermination . | . . . Reinforcement 3 | . 1 2 Assault . | . . . Garrison . | . . . Intercept . | . . . Searches Triggered . | . . . Construction Impeded . | . . . Haulers Reinforced . | . . . Active Scanning Responses . | . . . Cargo Convoy Interrupts . | . . . Stealth | -11 -10 -9 --------- Run | Yrd Mat Mat Distress Signals 2 | . . 2 Communications Jammed . | . . . Distress Signals . | . . . Times Spotted 21 | . 6 15 Peak Tracking Total 7 | . 3 7 Tactical Retreats 3 | . . 3 Traps | -11 -10 -9 ------- Run | Yrd Mat Mat Traps Triggered 1 | . 1 . Indirectly . | . . . Trap Hack Attempts . | . . . Triggered . | . . . Disarmed . | . . . Reprogrammed . | . . . Reused . | . . . Traps Extracted . | . . . Installed . | . . . Triggered . | . . . Machines | -11 -10 -9 ---------- Run | Yrd Mat Mat Machines Disabled . | . . . Max in Single Turn . | . . . Machines Repaired . | . . . Machines Dismantled . | . . . Machines Sabotaged . | . . . Overloaded Fab Kills . | . . . Hacking | -11 -10 -9 --------- Run | Yrd Mat Mat Machines Accessed 5 | . 4 1 Terminals 5 | . 4 1 Fabricators . | . . . Repair Stations . | . . . Recycling Units . | . . . Scanalyzers . | . . . Garrison Access . | . . . Total Hacks 16 | . 11 5 Successful 6 | . 4 2 Failed 10 | . 7 3 Catastrophic 1 | . 1 . Database Lockouts . | . . . Manual 16 | . 11 5 Terminals 16 | . 11 5 Fabricators . | . . . Repair Stations . | . . . Recycling Units . | . . . Scanalyzers . | . . . Garrison Access . | . . . Terminal Hacks 2 | . 1 1 Locate Traps 2 | . 1 1 Fabricator Hacks . | . . . Repair Station Hacks . | . . . Recycling Unit Hacks . | . . . Scanalyzer . | . . . Garrison Access Hacks . | . . . Unauthorized Hacks 4 | . 3 1 Terminals 4 | . 3 1 Botnet 4 | . 3 1 Fabricators . | . . . Repair Stations . | . . . Recycling Units . | . . . Scanalyzers . | . . . Garrison Access . | . . . Data Cores Recovered . | . . . Used . | . . . Hacking Detections 5 | . 4 1 Full Trace Events . | . . . Feedback Events . | . . . Feedback Blocked . | . . . Robot Schematics Acquired . | . . . Robots Built . | . . . Authchips . | . . . Time . | . . . Total Robot Build Rating . | . . . Part Schematics Acquired . | . . . Parts Built . | . . . Authchips . | . . . Time . | . . . Total Part Build Rating . | . . . Parts Repaired . | . . . Time . | . . . Parts Recycled . | . . . Recycled Matter . | . . . Retrieved Matter . | . . . Retrieved Components . | . . . Parts Scanalyzed . | . . . Part Schematics Acquired . | . . . Parts Damaged . | . . . Bothacking | -11 -10 -9 ------------ Run | Yrd Mat Mat Used RIF Installer . | . . . Robots Hacked . | . . . Non-combat . | . . . Combat . | . . . Robot Hacks Applied . | . . . Relay Couplers Released . | . . . Fabnet Peak Effective % . | . . . Robots Rewired . | . . . Allies Hacked . | . . . Hacks Repelled . | . . . Allies | -11 -10 -9 -------- Run | Yrd Mat Mat Total Allies . | . . . Largest Group . | . . . Highest-Rated Group . | . . . Highest-Rated Ally . | . . . Total Orders . | . . . Ally Attacks . | . . . Total Damage . | . . . Kills . | . . . Allies Corrupted . | . . . Allies Melted . | . . . Intel | -11 -10 -9 ------- Run | Yrd Mat Mat Active Infowar (turns) 147 | . 147 . Seismic 147 | . 147 . Robot Analysis Total . | . . . Derelict Logs Recovered . | . . . Drone Launches . | . . . Drone Recoveries . | . . . Exploration | -11 -10 -9 ------------- Run | Yrd Mat Mat Turns Passed 739 | 46 370 323 Spaces Moved 500 | 41 264 195 Core 17 | 4 . 13 Treads . | . . . Legs . | . . . Wheels 483 | 37 264 182 Hover . | . . . Flight . | . . . Fastest Speed 50 | 50 90 100 Average Speed 102 | 88 96 114 Slowest Speed 300 | 100 100 300 Overloaded Moves . | . . . Propulsion Burnouts . | . . . Robots Hopped . | . . . Potential Cave-ins . | . . . Cave-ins Triggered . | . . . Exploration Rate (%) 24 | 4 50 18 Regions Visited 2 Branch Regions . Pre-discovered Areas . | . . . Known Exits Taken . | . . . Unknown Exits Taken 2 | 1 1 . Scrap Searched . | . . . Spaces Dug 3 | . . 3 Terrain Destroyed 4 | . 1 3 Melee . | . . . Projectile 3 | . . 3 AOE 1 | . 1 . Terrain Rammed . | . . . Walls Destroyed . | . . . Machines Disabled . | . . . Actions | -11 -10 -9 --------- Run | Yrd Mat Mat Total 632 | 47 344 241 Wait 46 | . 46 . Move 498 | 40 263 195 Hop . | . . . Pick Up 8 | 1 5 2 Fast Attach 13 | 6 2 5 Attach 3 | . . 3 Detach . | . . . Swap 1 | . . 1 Drop 1 | . . 1 Fire 61 | . 27 34 Melee . | . . . Ram 1 | . 1 . Kick . | . . . Crush . | . . . Escape Stasis . | . . . Rewire . | . . . Trap . | . . . Miscellaneous . | . . . Route ------- -11/Scrapyard -10/Materials (discovered 2 exits: *Mat / [*Min]) -9/Materials History --------- Turn | Location | Event 8 | -11/Scrapyard | Discovered new exit (range 15) 47 | -11/Scrapyard | Entered Materials 211 | -10/Materials | Core integrity fell below 50% 301 | -10/Materials | Build established: Mutant 349 | -10/Materials | Discovered new exit (range 8) 391 | -10/Materials | Discovered new exit (range 12) 417 | -10/Materials | Entered another Materials area 417 | -9/Materials | Evolved 2 slots: Propulsion x1, Utility x1 688 | -9/Materials | Core integrity fell below 50% 694 | -9/Materials | System corruption reached 10% 710 | -9/Materials | Core integrity fell below 20% 722 | -9/Materials | Lost 8 parts (2n2u4w) 740 | -9/Materials | Destroyed by G-47 Trooper with Particle Gun Last Messages --------------- R-06 Scavenger collects Sml. Matter Pod. K-01 Serf collects debris. R-06 Scavenger collects Wheel. Y-45 Defender destroyed. K-01 Serf collects debris. R-06 Scavenger collects Lgt. Armor Plating. System corrupted: Imp. Assault Rifle jammed. K-01 Serf collects debris. ALERT: Hostiles spotted, dispatching reinforcements to Terminal M010. System corrupted: Matter fused (-5). R-06 Scavenger collects Lgt. Treads. R-06 Scavenger collects Beam Rifle. K-01 Serf collects debris. R-06 Scavenger collects Lgt. Treads. K-01 Serf collects debris. G-34 Mercenary destroyed. K-01 Serf collects debris. Acquired 51 matter. K-01 Serf collects debris. Map ----- +----------------------------------------------------+ | ?????????????????????????????????????????????????? | | ?????????????????????????????????????????????????? | | ?????????????????????????????????????????????????? | | ?????????????????????????????????????????????????? | | ?????????????????????????????????????????????????? | | ?????????????????????????????????????????????????? | | ?????????????????????????????????????????????????? | | ?????????????????????????????????????????????????? | | ?????????????????????????????????????????????????? | | ?????????????????????????????????????????????????? | | ??????????????????????? ????????????????????????? | | ????????????????????? ????????????????????????? | | ?????????????????????? ????????????????????????? | | ?????????????????????# ######??????????????????? | | ?????????????????????? !== #??????????????????? | | ?????????????????????? !=u #??????????????????? | | ?????????????????????#" === #??????????###+##??? | | ?????????????????????#" #####????### ??? | | ?????????????????????#" ?????? ??? | | ?????????????????????#T ??????? ??? | | ?????????????????????#" = ????????? ??? | | ?????????????????????#" % #??????????? ??? | | ?????????????????????#" =%*#?######????# #### | | ?????????????????????# ! # ?????# # | | ?????????????????????# * + ????????# # " | | ?????????????????????# [@/ #???????????# # "" | | ?????????????????????#% / ##??????????# # "" | | ????????????????????##= =%= #??????????# + "" | | ????????????????????# * [% #??????????# # " | | ???????????????? [gg %==#??????????# # | | ????????????? !# k[ ############ # | | ???????????# ?# t ## # # | | ???????????# ??# ######### """ """ # ##+# | | ???????????# ???# ???????#" """ """ # ## # | | ???????????#####????# ???????## """ """ + ## # | | ????????????????????# ????????# """ """ # ## # | | ???????????????????? w????????# """ """ ## ### # | | ???????????????????# ! ????????# ## #?# # | | ???????????????????+ !%!????????# ## #?# # | | ???????????????????# *[????????############# ### # | | ???????????????????# ????????# # ## | | ????????????????????# ????????# """ # ## | | ?????????????????????? ????????# """"" # ## | | ???????????????????????????????# """"" # ## | | ????????????????????????######## """"" # ## | | ????????????????????????# "T" ## """ + ## | | ????????????????????????# ## # ## | | ????????????????????????# ########/##### # | | ????????????????????????# """ ###### #?# # | | ????????????????????????# """ # ### # | +----------------------------------------------------+ Best States ------------- Heat Dissipation 42 Energy Generation 14 Energy Capacity 280 Matter Stores 300 Matter Capacity 300 Sight Range 16 Terrain Scan Density 10 Core Shielding 20 Evasion (%) 42 Item Schematics ----------------- None Robot Schematics ------------------ None Fabricated ------------ Nothing Repaired ---------- Nothing Alien Tech Used ----------------- None Achievements -------------- None Challenges ------------ None Game ------ Seed WeaponHugeSpiker Manual? 0 Play Time 00:09:37 Cumulative 36.6 hours Start 2025.09.29 @ 14:46:23 End 2025.09.29 @ 14:53:29 Sessions 1 Manual Loads 0 Difficulty Rogue Special Mode None Game No. 38 Rogue 38 Adventurer 0 Explorer 0 Win Type - Total 1 Types 1/0/0/0/0/0/0/0/0/0 Lore% 38 Gallery% 38 Achievement% 37 Wizard Run 0 Options --------- Layout 1 ASCII 0 Keyboard 0 Movement Numpad Keybinds 0 Fullscreen 1 Font 32/SmallcapsGlow Map View 50x35 Zoom Use 0% Tactical HUD 0 Map Filters NONE Filters NONE Steam 1 RUN: 28ef3860-8878-4d47-9050-0143f9889b3e